[Event "Polish Youth B18 Championship 2023"]
[Site "Jastrzebia Gora"]
[Date "2023.03.17"]
[Round "7.8"]
[White "Madajczak, Piotr"]
[Black "Czernek, Tymon"]
[Result "1/2-1/2"]
[ECO "A22"]
[WhiteElo "1897"]
[BlackElo "2314"]
[Annotator "TA"]
[PlyCount "77"]
[EventDate "2023.03.11"]
[EventType "swiss"]
[EventCountry "POL"]
[SourceTitle "playchess.com"]
[Source "ChessBase"]
[SourceQuality "1"]
[TimeControl "40/5400+30:1800+30"]

{[%evp 9,77,14,39,33,45,37,35,27,36,26,31,22,27,22,24,32,20,15,13,14,15,4,8,0,0,-37,-16,-35,-21,-20,-19,-22,-23,-26,-31,-42,0,0,0,0,0,0,0,0,0,0,0,0,0,0,-22,0,0,0,0,0,0,0,0,0,0,0,0,-6,-6,-6,0,-6,0,-6]} 1. c4 {[%emt 0:00:03]} e5 {[%emt 0:00:11]} 2. Nc3 {[%emt 0:00:10]} Nf6 {[%emt 0:00:07]} 3. g3 {[%emt 0:00:08]} c6 {[%emt 0:00:06]} 4. Nf3 {[%emt 0:00:18]} e4 {[%emt 0:00:10]} 5. Nd4 {[%emt 0:00:07]} d5 {[%emt 0:00:03]} 6. cxd5 {[%emt 0:00:21] A23: English Opening: 1...e5 2 Nc3 Nf6 3 g3 c6.} Bc5 {[%emt 0:00:05]} 7. Nb3 {[%emt 0:00:36]} Bb6 {[%emt 0:00:07]} 8. Bg2 {[%emt 0:00:56] White is slightly better.} cxd5 {[%emt 0:00:12]} 9. d3 {[%emt 0:01:00][%cal Rd3e4]} Ng4 {[%emt 0:00:32]} 10. O-O {[%emt 0:14:43]} (10. dxe4 Nxf2 11. Qxd5 Nxh1 12. Qxd8+ Bxd8 $17) 10... e3 {[%emt 0:00:03] [#]} 11. fxe3 $146 {[%emt 0:21:08]} ({Reject} 11. Bxd5 exf2+ 12. Kg2 O-O $15) ({Predecessor:} 11. Nxd5 exf2+ 12. Kh1 h5 13. h4 Nc6 14. d4 O-O 15. e4 a5 16. a4 Re8 17. Bf4 {0-1 Jongsma,A (2300)-Comp Rajah The Hague AEGON 1997 (2)}) 11... Bxe3+ {[%emt 0:00:06]} 12. Kh1 $1 {[%emt 0:00:04]} Be6 {[%emt 0:00:04]} 13. d4 {[%emt 0:07:53]} ({Of course not} 13. Bxe3 Nxe3 14. Qd2 Nxf1 15. Rxf1 Nc6 $17) 13... Nc6 {[%emt 0:10:44]} 14. Rf3 {[%emt 0:08:49]} Bxc1 {[%emt 0:00:49]} (14... Nf2+ 15. Rxf2 Bxf2 16. Qd2 $16) 15. Qxc1 {[%emt 0:05:07]} O-O {[%emt 0:00:32]} 16. Qf4 {[%emt 0:01:06]} b6 {[%emt 0:06:12]} 17. Rd1 {[%emt 0:01:58]} f5 {[%emt 0:01:50]} 18. Rff1 {[%emt 0:03:35]} Qd7 {[%emt 0:05:27]} 19. Nc1 {[%emt 0:00:47]} Nf6 {[%emt 0:02:23]} 20. Nd3 {[%emt 0:06:11]} Ne4 {[%emt 0:00:08]} 21. Ne5 {[%emt 0:00:29]} Nxe5 {[%emt 0:00:54]} 22. Qxe5 {[%emt 0:00:03][%cal Rc3e4]} Rae8 {[%emt 0:02:02]} 23. Nxe4 {[%emt 0:02:47] The position is equal.} fxe4 {[%emt 0:00:06]} 24. Rxf8+ {[%emt 0:05:07]} Rxf8 {[%emt 0:00:02]} 25. Rc1 $1 {[%emt 0:00:33] [#] Rc7 is the strong threat.} Rc8 {[%emt 0:00:48] Repels Rc7} 26. Rxc8+ {[%emt 0:01:59]} Qxc8 $11 {[%emt 0:00:01][%mdl 4096] Endgame KQB-KQB} 27. h4 {[%emt 0:00:09]} h6 {[%emt 0:00:54]} 28. Kh2 {[%emt 0:00:37]} Qd7 {[%emt 0:01:52]} 29. b3 {[%emt 0:02:05]} Kh7 {[%emt 0:03:01]} 30. Kg1 {[%emt 0:00:33]} b5 {[%emt 0:02:11]} 31. b4 {[%emt 0:03:03]} Qc6 {[%emt 0:01:57]} 32. Kf2 {[%emt 0:00:44]} Bg4 {[%emt 0:01:12]} 33. Bf1 {[%emt 0:01:28]} h5 {[%emt 0:01:33]} 34. Qg5 {[%emt 0:01:17]} Qc4 {[%emt 0:02:16]} 35. Qd2 {[%emt 0:00:17]} a6 {[%emt 0:00:51]} 36. Ke3 {[%emt 0:00:34]} Qc7 {[%emt 0:01:26][%cal Rc7g3] [#]} 37. Kf2 {[%emt 0:00:09]} Qc4 {[%emt 0:02:43]} 38. Ke3 {[%emt 0:00:06]} Qc7 {[%emt 0:00:40][%cal Rc7g3]} 39. Kf2 $1 {[%emt 0:00:07] Weighted Error Value: White=0.03 (flawless) /Black=0.04 (flawless)} 1/2-1/2

[Event "Polish Youth B18 Championship 2023"]
[Site "Jastrzebia Gora"]
[Date "2023.03.17"]
[Round "7.9"]
[White "Turski, Bartlomiej"]
[Black "Grzesik, Gracjan"]
[Result "1-0"]
[ECO "B90"]
[WhiteElo "2352"]
[BlackElo "2149"]
[Annotator "TA"]
[PlyCount "87"]
[EventDate "2023.03.11"]
[EventType "swiss"]
[EventCountry "POL"]
[SourceTitle "playchess.com"]
[Source "ChessBase"]
[SourceQuality "1"]
[TimeControl "40/5400+30:1800+30"]

{[%evp 9,87,29,20,0,0,0,0,5,12,0,0,0,2,0,0,15,18,18,23,32,80,74,91,95,90,100,131,129,122,133,134,133,129,131,129,131,152,116,110,115,131,127,161,180,508,117,733,736,729,733,899,890,1839,1778,1646,1657,1551,1578,1664,927,29973,29974,29973,29974,29981,29982,29983,29984,29980,29981,29981,29982,29986,29987,29987,29977,29992,29993,29993,29989]} 1. e4 c5 {[%emt 0:00:09]} 2. Nf3 {[%emt 0:00:27]} d6 {[%emt 0:00:04]} 3. d4 {[%emt 0:00:05]} cxd4 {[%emt 0:00:04]} 4. Nxd4 {[%emt 0:00:04]} Nf6 {[%emt 0:00:06]} 5. Nc3 {[%emt 0:00:04]} a6 {[%emt 0:00:04]} 6. h4 {[%emt 0:00:05] B90: Sicilian Najdorf: Unusual White 6th moves, 6 Be3 Ng4 and 6 Be3 e5.} e5 {[%emt 0:01:40]} 7. Nb3 {[%emt 0:00:15]} Be7 {[%emt 0:01:28]} 8. Bg5 {[%emt 0:00:10] The position is equal.} Be6 {[%emt 0:04:51]} 9. Bxf6 {[%emt 0:00:44]} Bxf6 {[%emt 0:00:19]} 10. g3 {[%emt 0:00:05]} O-O {[%emt 0:06:40]} 11. Qd2 {[%emt 0:00:23]} Be7 {[%emt 0:02:14]} 12. O-O-O {[%emt 0:00:44]} Nd7 {[%emt 0:03:07]} 13. f4 {[%emt 0:13:26]} b5 {[%emt 0:11:48]} 14. f5 {[%emt 0:04:49]} Bxb3 {[%emt 0:09:14] [#]} (14... Bc4 $14 {feels stronger.}) 15. axb3 $146 {[%emt 0:01:03]} ({Predecessor:} 15. cxb3 Nf6 16. Qe3 Rc8 17. Kb1 Qc7 18. Bd3 Rfe8 19. Qf3 h6 20. g4 b4 21. Na4 {1-0 Sadhwani,R (2493)-Eynullayev,A (2204) Abu Dhabi op 26th 2019 (1)}) 15... Nb6 {[%emt 0:01:54] Black is weak on the light squares} 16. Kb1 {[%emt 0:05:53]} Qc7 {[%emt 0:04:50]} 17. g4 {[%emt 0:07:04]} Rfc8 {[%emt 0:10:40]} 18. g5 {[%emt 0:10:43][%cal Of5f6]} f6 {[%emt 0:11:29]} 19. gxf6 {[%emt 0:11:23]} Bxf6 {[%emt 0:04:20]} 20. h5 {[%emt 0:07:52]} h6 {[%emt 0:00:45]} 21. Rg1 {[%emt 0:02:48]} Kh7 {[%emt 0:04:54]} 22. Qxd6 {[%emt 0:06:02]} (22. Qg2 $6 Bg5 $14) 22... Qa7 {[%emt 0:05:06]} 23. Bd3 {[%emt 0:10:35] White has more active pieces.} Rd8 {[%emt 0:03:47]} 24. Qc5 {[%emt 0:03:42]} Rac8 {[%emt 0:06:21]} 25. Qe3 {[%emt 0:02:53][%cal Oc3d5]} Qb7 {[%emt 0:01:12] Wards off Nd5} 26. Rg6 {[%emt 0:01:51][%cal Og6f6] Hoping for Rxf6!} (26. Qg3 Kh8 $16) 26... b4 $2 {[%emt 0:01:49]} (26... Rd6 27. Rdg1 Kh8) 27. Ne2 $2 {[%emt 0:04:52]} (27. Rxf6 $18 gxf6 28. Rg1) 27... a5 $2 {[%emt 0:02:26][%mdl 8192] [#] Loses the game.} (27... Rd6 $16) 28. Rxf6 $1 $18 {[%emt 0:03:42][%mdl 512]} gxf6 29. Rg1 {[%emt 0:00:01] aiming for Rg6.} Rg8 {[%emt 0:02:41]} 30. Rg6 {[%emt 0:00:09]} Rxg6 {[%emt 0:00:51]} 31. fxg6+ {[%emt 0:01:25]} Kg8 {[%emt 0:00:22]} 32. Ng3 {[%emt 0:00:39]} a4 {[%emt 0:00:40]} 33. Nf5 {[%emt 0:00:56]} axb3 {[%emt 0:00:29]} 34. cxb3 {[%emt 0:00:27][%cal Bc2b3,Bb3c4,Bc4c5,Bc5b6][%mdl 32]} Qa7 {[%emt 0:00:34]} 35. Bc4+ {[%emt 0:01:38] White mates.} Rxc4 {[%emt 0:00:28]} 36. bxc4 {[%emt 0:00:07] KQN-KQN} Qd7 {[%emt 0:00:31]} 37. Qb3 {[%emt 0:01:08]} (37. Qxb6 Qd1+ 38. Ka2 Qa4+ 39. Kb1 Qd1+ 40. Ka2 Qa4+ 41. Kb1 Qd1+ $11) 37... Kh8 {[%emt 0:00:32]} 38. g7+ {[%emt 0:00:25]} Kh7 {[%emt 0:00:05]} 39. g8=Q+ {[%emt 0:00:24][%mdl 64] Decoy} Kxg8 {[%emt 0:00:04]} 40. c5+ {[%emt 0:00:00][%mdl 64] Discovered Attack} Kh8 {[%emt 0:00:00]} 41. cxb6 {[%emt 0:00:19]} Qb5 {[%emt 0:01:31]} 42. Qd1 {[%emt 0:01:52]} ({Not} 42. Nxh6 Qf1+ 43. Ka2 Qa6+ 44. Kb1 Qf1+ 45. Kc2 (45. Ka2 Qa6+ 46. Kb1 Qf1+ $11) 45... Qf2+ 46. Kd3 Qf1+ 47. Kd2 (47. Kc2 Qf2+ 48. Kd3 Qf1+ 49. Kd2 Qf2+ 50. Kd3 $11) 47... Qf2+ 48. Kd3 (48. Kd1 Qf1+ 49. Kd2 Qf2+ 50. Kd3 Qf1+ 51. Kd2 $11) 48... Qf1+ 49. Kd2 (49. Kc2 Qf2+ 50. Kd3 $11) 49... Qf2+ 50. Kd3 $11 (50. Kd1 Qf1+ 51. Kd2 $11)) (42. Qf7 Qd3+ 43. Ka1 Qa6+ 44. Kb1 Qf1+ 45. Ka2 Qa6+ 46. Kb3 Qd3+ 47. Ka4 Qa6+ 48. Kxb4 (48. Kb3 Qd3+ 49. Kxb4 Qb5+ 50. Kc3 Qxb2+ 51. Kd3 Qb1+ 52. Ke2 Qc2+ 53. Kf3 Qd1+ 54. Kg3 Qd3+ 55. Kh2 Qe2+ 56. Kh3 Qf1+ 57. Kh4 Qf4+ 58. Kh3 Qf1+ 59. Kh4 Qf4+ 60. Kh3 Qf1+ $11) 48... Qb5+ 49. Kc3 Qxb2+ 50. Kd3 Qb1+ 51. Ke2 (51. Kc3 Qb2+ 52. Kxb2 $11) 51... Qc2+ 52. Kf3 Qd1+ 53. Kg3 Qd3+ 54. Kh4 (54. Kh2 Qe2+ 55. Kh1 Qf1+ 56. Kh2 Qe2+ 57. Kh3 Qf1+ 58. Kh4 Qf4+ 59. Kh3 Qf1+ 60. Kh4 Qf4+ 61. Kh3 Qf1+ $11) 54... Qxe4+ 55. Kh3 (55. Kg3 Qf4+ 56. Kh3 Qxf5+ 57. Kg3 Qf4+ 58. Kg2 Qe4+ 59. Kf2 Qd4+ 60. Kg2 Qb2+ 61. Kh1 Qxb6 $11) 55... Qxf5+ 56. Kg3 Qf4+ 57. Kg2 Qe4+ 58. Kf2 (58. Kh2 Qf4+ 59. Kg2 Qe4+ 60. Kf2 Qd4+ 61. Kg2 Qxb6 $11) 58... Qd4+ 59. Kg2 (59. Kf3 e4+ 60. Kg4 Qxb6 $11) 59... Qxb6 $11) 42... Kh7 {[%emt 0:01:03]} 43. b3 {[%emt 0:00:44]} Qc6 {[%emt 0:00:56]} 44. Qg4 {[%emt 0:00:55] Weighted Error Value: White=0.16 (very precise) /Black=0.36} 1-0

[Event "Polish Youth B18 Championship 2023"]
[Site "Jastrzebia Gora"]
[Date "2023.03.17"]
[Round "7.10"]
[White "Zdybel, Przemyslaw"]
[Black "Stachecki, Mikolaj"]
[Result "1/2-1/2"]
[ECO "B24"]
[WhiteElo "2268"]
[BlackElo "2015"]
[Annotator "TA"]
[PlyCount "90"]
[EventDate "2023.03.11"]
[EventType "swiss"]
[EventCountry "POL"]
[SourceTitle "playchess.com"]
[Source "ChessBase"]
[SourceQuality "1"]
[TimeControl "40/5400+30:1800+30"]

{[%evp 16,90,30,39,37,37,66,66,71,60,61,56,91,93,135,90,101,68,114,112,143,148,168,114,114,102,120,45,58,56,90,48,70,69,56,35,36,51,77,64,70,60,65,56,58,17,28,0,114,120,117,121,140,100,142,106,113,127,132,0,239,6,6,8,8,8,8,8,8,0,0,0,0,-6,-6,-22,-22]} 1. e4 {[%emt 0:00:04]} c5 {[%emt 0:00:12]} 2. Nc3 {[%emt 0:00:05]} Nc6 {[%emt 0:00:07]} 3. g3 {[%emt 0:00:06]} g6 {[%emt 0:00:19]} 4. Bg2 {[%emt 0:00:05]} Bg7 {[%emt 0:00:13]} 5. d3 {[%emt 0:00:11]} e6 {[%emt 0:00:13]} 6. Be3 {[%emt 0:00:05]} d6 {[%emt 0:00:06]} 7. Qd2 Nge7 {[%emt 0:00:14]} 8. Bh6 {[%emt 0:00:09]} Bxh6 {[%emt 0:01:08]} 9. Qxh6 {[%emt 0:00:09]} Ng8 {[%emt 0:00:06] B26: Closed Sicilian: 3 g3, lines with early Be3.} 10. Qd2 {[%emt 0:00:44]} Nd4 {[%emt 0:05:22]} 11. Nd1 {[%emt 0:02:26]} Ne7 {[%emt 0:01:52] White is slightly better.} 12. c3 {[%emt 0:00:31]} Ndc6 {[%emt 0:00:08]} 13. f4 {[%emt 0:04:58]} f5 {[%emt 0:01:11]} 14. Nf3 {[%emt 0:02:56]} O-O {[%emt 0:01:57]} 15. O-O {[%emt 0:03:12] [#]} Rb8 $146 {[%emt 0:03:14]} ({Predecessor:} 15... b5 16. exf5 exf5 17. d4 Rb8 18. Ne3 b4 19. Rfe1 h6 20. Rad1 Bb7 21. Qe2 bxc3 22. bxc3 cxd4 23. Nxd4 Nxd4 {0-1 Chyzhevskyy,M (1880)-Grechko,V (2104) Chernivtsi op 2021 (2)}) 16. exf5 {[%emt 0:03:22]} exf5 {[%emt 0:11:38]} (16... Nxf5 $14 17. Ne3 Bd7) 17. Re1 $16 {[%emt 0:01:25]} Kg7 {[%emt 0:08:06]} 18. d4 {[%emt 0:03:06] aiming for d5.} Ng8 {[%emt 0:01:35]} 19. d5 {[%emt 0:01:49]} (19. dxc5 $18 dxc5 20. Qe3) 19... Nce7 {[%emt 0:02:40]} 20. Ng5 {[%emt 0:00:46]} Nf6 {[%emt 0:08:37]} 21. Nf2 {[%emt 0:36:26]} ({Better is} 21. Ne3 $16) 21... Re8 $14 22. Rad1 {[%emt 0:01:32]} Qc7 {[%emt 0:05:56]} 23. h3 {[%emt 0:03:35]} h6 {[%emt 0:01:25]} 24. Ne6+ {[%emt 0:00:11]} Bxe6 {[%emt 0:00:06]} 25. Rxe6 {[%emt 0:00:31]} Neg8 {[%emt 0:06:15]} 26. g4 {[%emt 0:09:56]} Rxe6 {[%emt 0:03:17]} 27. dxe6 {[%emt 0:00:03]} Rd8 {[%emt 0:01:10]} 28. c4 {[%emt 0:05:25]} Kh7 {[%emt 0:03:34]} 29. g5 {[%emt 0:05:53]} Ne8 {[%emt 0:08:11]} 30. gxh6 {[%emt 0:01:54]} Kxh6 {[%emt 0:02:15]} 31. h4 {[%emt 0:04:28]} Qe7 {[%emt 0:04:01] [#]} (31... Ng7 $1 $11) 32. Nh3 $1 $36 {[%emt 0:00:02][%mdl 2048] Black is under strong pressure.} Kg7 {[%emt 0:05:45]} 33. Ng5 {[%emt 0:00:34]} Nh6 {[%emt 0:02:51]} 34. b4 {[%emt 0:00:51]} Rc8 {[%emt 0:02:27]} 35. bxc5 {[%emt 0:02:43]} Rxc5 {[%emt 0:01:07]} 36. Qd4+ {[%emt 0:03:54]} ({Much less strong is} 36. Rb1 b6 $14) 36... Qf6 {[%emt 0:02:40]} 37. Bxb7 {[%emt 0:00:24] White is much more active.} (37. Qd3 $16) 37... a5 $2 {[%emt 0:01:33] [#]} (37... Qxd4+ $11 {and Black has nothing to worry.} 38. Rxd4 Kf8) 38. Ba6 $2 {[%emt 0:02:55]} (38. Qd3 $1 $18) 38... Qxd4+ $11 {[%emt 0:02:22] The position is equal.} 39. Rxd4 {[%emt 0:00:01] e7 would be deadly.} Kf6 {[%emt 0:00:22]} 40. Bb5 {[%emt 0:00:00]} Ke7 {[%emt 0:00:00]} 41. Bxe8 {[%emt 0:21:17]} Kxe8 {[%emt 0:01:53]} 42. Kf2 {[%emt 0:02:20]} Ke7 {[%emt 0:10:04]} 43. Ke2 {[%emt 0:00:59]} Ng4 {[%emt 0:02:01]} 44. a4 {[%emt 0:02:26]} Nf6 $1 {[%emt 0:00:20]} 45. Kd3 {[%emt 0:01:53]} Rc8 {[%emt 0:00:53] Weighted Error Value: White=0.28 (precise) /Black=0.23 (precise)} 1/2-1/2

[Event "Polish Youth B18 Championship 2023"]
[Site "Jastrzebia Gora"]
[Date "2023.03.17"]
[Round "7.11"]
[White "Pisarek, Jan"]
[Black "Paprocki, Antoni"]
[Result "0-1"]
[ECO "C50"]
[WhiteElo "1931"]
[BlackElo "2255"]
[Annotator "TA"]
[PlyCount "68"]
[EventDate "2023.03.11"]
[EventType "swiss"]
[EventCountry "POL"]
[SourceTitle "playchess.com"]
[Source "ChessBase"]
[SourceQuality "1"]
[TimeControl "40/5400+30:1800+30"]

{[%evp 10,68,15,16,12,12,4,0,6,18,2,0,12,0,30,26,28,36,47,36,42,24,36,29,46,10,50,70,62,42,94,86,85,76,81,54,56,0,0,0,0,0,15,22,50,13,14,13,9,8,49,45,45,37,124,0,14,-151,-94,-952,-933]} 1. e4 {[%emt 0:00:05]} e5 {[%emt 0:00:44]} 2. Nf3 {[%emt 0:00:09]} Nc6 {[%emt 0:00:06]} 3. Bc4 {[%emt 0:00:08]} Nf6 {[%emt 0:00:05]} 4. d3 {[%emt 0:00:13]} Bc5 {[%emt 0:00:07]} 5. c3 {[%emt 0:00:07]} d6 {[%emt 0:00:05]} 6. h3 {[%emt 0:00:13]} a5 {[%emt 0:00:34] C54: Giuoco Piano: 4 c3 Nf6, main lines with 5 d4 and 5 d3.} 7. Nbd2 {[%emt 0:02:50][%cal Bb1d2,Bd2f1,Bf1g3][%mdl 32]} O-O {[%emt 0:01:36]} 8. O-O {[%emt 0:00:35]} h6 {[%emt 0:02:33] The position is equal.} 9. Re1 {[%emt 0:01:23]} Be6 {[%emt 0:00:06]} 10. Bb3 {[%emt 0:17:55]} Ba7 {[%emt 0:04:08]} 11. Bc2 {[%emt 0:03:15] outshines the older 11.Nf1.} Ne7 {[%emt 0:07:50]} 12. Nf1 {[%emt 0:01:55]} c6 {[%emt 0:02:13]} 13. Ng3 {[%emt 0:02:25]} Ng6 {[%emt 0:04:08]} 14. d4 {[%emt 0:11:33]} Re8 {[%emt 0:01:14]} 15. a4 {[%emt 0:02:29]} Qc7 {[%emt 0:08:55]} 16. Be3 {[%emt 0:14:13]} Rad8 {[%emt 0:02:27]} 17. Qd2 {[%emt 0:15:15] [#]} Qe7 $146 {[%emt 0:09:06]} ({Predecessor:} 17... Bb8 18. Rad1 d5 19. exd5 Bxd5 20. Bxg6 Bxf3 21. Bxf7+ Qxf7 22. gxf3 exd4 23. cxd4 Nd5 {0-1 Ragger,M (2687)-Nakamura,H (2746) Wch Rapid St Petersburg 2018 (2)}) 18. Rad1 {[%emt 0:01:40]} Bb8 {[%emt 0:07:03]} 19. Qc1 {[%emt 0:01:19]} b5 {[%emt 0:04:50]} (19... Bc7 $14) 20. Nf5 {[%emt 0:04:27]} Bxf5 {[%emt 0:00:27]} 21. exf5 {[%emt 0:00:04]} Nf8 {[%emt 0:00:19]} 22. dxe5 {[%emt 0:02:39]} dxe5 {[%emt 0:01:20][%cal Bd6e5,Be5e4][%mdl 32]} 23. Bb6 {[%emt 0:01:28]} (23. Nd2 $14) 23... Rxd1 $11 {[%emt 0:02:51]} 24. Qxd1 {[%emt 0:00:46]} (24. Bxd1 e4 25. Nd2 (25. Bxa5 $2 Qd6 $19) 25... Qe5 $15) 24... e4 {[%emt 0:08:15]} 25. Nd2 {[%emt 0:08:01][%cal Bf3d2,Bd2f1,Bf1e3][%mdl 32]} (25. Bxa5 $2 Qa7 26. Bb4 Qc7 27. Bxe4 Nxe4 28. Bxf8 Kxf8 29. axb5 cxb5 $19) 25... Qd6 {[%emt 0:00:59] [#] aiming for ...Qh2+.} 26. Nf1 {[%emt 0:00:25] Dodges Qh2+} (26. Bxa5 $2 Qh2+ 27. Kf1 Qh1+ 28. Ke2 Qxg2 $19) 26... Qe5 {[%emt 0:04:57]} 27. Bd4 {[%emt 0:01:51]} Qxf5 {[%emt 0:01:20]} 28. Bxf6 {[%emt 0:00:04]} Qxf6 {[%emt 0:02:04]} 29. Rxe4 {[%emt 0:00:15]} Rd8 {[%emt 0:13:14]} (29... Rxe4 {keeps more tension.} 30. Bxe4 bxa4 31. Qxa4 Ba7) 30. Qe2 {[%emt 0:00:16]} Ba7 {[%emt 0:00:10]} 31. Ne3 {[%emt 0:01:41]} b4 {[%emt 0:04:11]} 32. Rc4 {[%emt 0:03:59]} ({White should try} 32. cxb4 $16 axb4 33. Bb3 (33. Rxb4 Ne6 $16)) 32... Ne6 {[%emt 0:02:01][%cal Bf8e6,Be6d4,Bd4c6][%mdl 32]} 33. Rxc6 $2 {[%emt 0:01:10]} (33. Qe1 $11) 33... Nd4 $1 $17 {[%emt 0:00:49][%mdl 64] [#] Discovered Attack, Double Attack} 34. Qa6 {[%emt 0:01:06][%mdl 8192]} (34. cxd4 $2 {loses.} Qxc6 35. d5 Qe8 $19) ({Don't go for} 34. Bh7+ $2 Kh8 35. cxd4 Qxc6 $19) (34. Rxf6 $17 Nxe2+ 35. Kf1 Bxe3 36. Ra6) 34... Nxc6 {[%emt 0:00:32] Weighted Error Value: White=0.36/Black=0.15 (very precise)} 0-1

[Event "Polish Youth B18 Championship 2023"]
[Site "Jastrzebia Gora"]
[Date "2023.03.17"]
[Round "7.12"]
[White "Lis, Maksymilian"]
[Black "Kolodziejski, Piotr"]
[Result "1/2-1/2"]
[ECO "E48"]
[WhiteElo "1784"]
[BlackElo "2118"]
[Annotator "TA"]
[PlyCount "109"]
[EventDate "2023.03.11"]
[EventType "swiss"]
[EventCountry "POL"]
[SourceTitle "playchess.com"]
[Source "ChessBase"]
[SourceQuality "1"]
[TimeControl "40/5400+30:1800+30"]

{[%evp 20,109,22,12,43,3,44,52,36,43,101,90,77,69,108,114,113,113,120,35,92,83,120,125,141,150,143,152,131,116,153,141,131,123,110,113,99,90,221,232,209,182,173,127,116,135,150,43,44,42,87,33,37,41,34,49,49,0,0,0,0,0,0,0,0,0,0,0,0,0,0,0,0,0,0,0,0,0,0,0,0,0,0,0,0,0,0,0,0,0,0,0]} 1. d4 {[%emt 0:00:14]} Nf6 2. c4 {[%emt 0:00:05]} e6 {[%emt 0:00:11]} 3. Nc3 {[%emt 0:00:03]} Bb4 {[%emt 0:00:04]} 4. e3 {[%emt 0:00:04]} O-O {[%emt 0:00:14]} 5. Bd3 {[%emt 0:00:08]} d5 {[%emt 0:00:13]} 6. Nge2 {[%emt 0:00:25]} dxc4 {[%emt 0:00:38]} 7. Bxc4 {[%emt 0:00:06]} c5 {[%emt 0:04:18]} 8. a3 {[%emt 0:02:04]} Bxc3+ {[%emt 0:02:37]} 9. bxc3 {[%emt 0:00:08]} Qc7 {[%emt 0:03:15]} 10. Bd3 {[%emt 0:00:05]} b6 $1 {[%emt 0:03:06][%mdl 4] 10...b6 is the recent fashion.} 11. O-O {[%emt 0:01:39]} Bb7 {[%emt 0:01:44] E49: Nimzo-Indian: Rubinstein: 5 Bd3 d5 6 a3 Bxc3+ 7 bxc3.} ({Resist} 11... c4 12. Bc2 $14) 12. Ng3 {[%emt 0:00:16]} e5 {[%emt 0:11:30]} 13. e4 {[%emt 0:11:02]} cxd4 {[%emt 0:08:09] White is slightly better.} 14. cxd4 {[%emt 0:00:05]} Nbd7 {[%emt 0:08:46] [#]} (14... exd4 $14 15. Bb2 Nc6) 15. d5 $146 {[%emt 0:02:33]} ({Predecessor:} 15. Nf5 exd4 16. Qf3 Rac8 17. Bf4 Qd8 18. Rfe1 Nc5 19. Bg5 Nxd3 20. Qxd3 Rc3 21. Qd1 {1-0 Diaz Rosas,J (2328)-Gaisinsky,A (2115) Titled Tuesday intern op 28th Jun Late blitz 2022 (1)}) 15... Nc5 {[%emt 0:00:48]} 16. Bb2 {[%emt 0:00:58]} Nxd3 {[%emt 0:06:19]} 17. Qxd3 {[%emt 0:00:06] Nf5 is the strong threat.} Nd7 {[%emt 0:00:27]} 18. Rfc1 {[%emt 0:08:15]} Nc5 {[%emt 0:03:41]} 19. Qd1 {[%emt 0:04:46]} (19. Qe3 $16) 19... f6 {[%emt 0:05:00]} (19... Rad8 $14) 20. a4 {[%emt 0:03:04][%cal Ba3a4,Ba4a5][%mdl 32]} Rfc8 {[%emt 0:04:08]} 21. Ba3 {[%emt 0:01:40]} g6 {[%emt 0:05:15] [#]} 22. a5 $1 {[%emt 0:00:25][%mdl 512]} Qd6 {[%emt 0:01:15]} 23. Qe2 {[%emt 0:19:57][%cal Oa5a6] And now a6! would win.} Rc7 {[%emt 0:07:44]} 24. Qe3 {[%emt 0:18:30]} Rac8 {[%emt 0:03:11]} 25. axb6 {[%emt 0:00:52]} axb6 {[%emt 0:00:17]} 26. Rcb1 {[%emt 0:00:06]} f5 {[%emt 0:05:06][%mdl 64] Deflection} 27. exf5 {[%emt 0:00:04] aiming for Ne4.} Qxd5 {[%emt 0:00:09][%csl Gb7][%cal Rd5g2]} 28. f3 {[%emt 0:00:15]} Nd7 {[%emt 0:01:37]} (28... e4 $16) 29. Rd1 $18 {[%emt 0:01:43]} Qf7 {[%emt 0:00:52]} 30. fxg6 {[%emt 0:00:33]} hxg6 {[%emt 0:01:01]} 31. Ne4 {[%emt 0:00:46]} ({White should try} 31. Rd6 $18) 31... Bxe4 $16 {[%emt 0:00:42]} 32. Qxe4 {[%emt 0:00:07]} Rc4 {[%emt 0:04:25]} 33. Qd5 {[%emt 0:04:13] White is more active.} (33. Qe3 $16) 33... Qxd5 $14 {[%emt 0:02:08]} 34. Rxd5 {[%emt 0:00:04]} Rd4 {[%emt 0:02:42] [#]} 35. Rd1 {[%emt 0:00:46]} (35. Rxd4 $1 $16 exd4 36. Rd1) 35... Rxd1+ {[%emt 0:00:03]} 36. Rxd1 {[%emt 0:00:04][%mdl 4096] Endgame KRB-KRN} Rc7 {[%emt 0:00:16]} 37. Rd5 {[%emt 0:01:18]} Kf7 {[%emt 0:00:56]} 38. Rb5 {[%emt 0:00:11]} (38. h3 $14 {was preferrable.}) 38... Ke6 $11 {[%emt 0:01:12] The position is equal.} 39. h4 {[%emt 0:00:31]} Rc4 {[%emt 0:01:34]} 40. Rb4 {[%emt 0:00:00]} Rxb4 {[%emt 0:00:00]} 41. Bxb4 {[%emt 0:01:43] KB-KN} Nf6 {[%emt 0:04:51]} 42. Kf2 {[%emt 0:00:41]} b5 {[%emt 0:03:47]} 43. Ke2 {[%emt 0:01:56]} Nd5 {[%emt 0:01:10]} 44. Bd2 {[%emt 0:00:59]} Nf4+ {[%emt 0:00:13]} 45. Kf1 {[%emt 0:00:52]} Nd5 {[%emt 0:05:04]} 46. g4 {[%emt 0:00:18][%cal Bg2g4,Bg4h5][%mdl 32]} e4 {[%emt 0:02:57]} 47. fxe4 {[%emt 0:00:09]} Nf6 {[%emt 0:00:10][%csl LRe4,LRg4]} 48. h5 {[%emt 0:02:48] h6 would be deadly.} gxh5 {[%emt 0:01:30]} 49. gxh5 {[%emt 0:00:09]} Nxe4 {[%emt 0:02:36]} 50. h6 {[%emt 0:01:24] Strongly threatening h7.} Nxd2+ {[%emt 0:02:40]} 51. Ke2 {[%emt 0:00:05][%cal Oh6h7] Black must now prevent h7!} Kf6 {[%emt 0:00:11] ( -> ...Ne4)} 52. Kxd2 {[%emt 0:00:05]} (52. h7 $5 Kg7 $8 53. Kxd2 $11) 52... Kg6 {[%emt 0:00:05]} 53. Kc3 {[%emt 0:00:03]} Kxh6 {[%emt 0:00:06]} 54. Kb4 {[%emt 0:00:01]} Kh7 {[%emt 0:00:06]} 55. Kxb5 {[%emt 0:00:04] Black defended with fortune.   Weighted Error Value: White=0.17 (very precise) /Black=0.13 (very precise)} 1/2-1/2